[Event "Late-Titled-Tuesday-Blitz-February-20-2024"]
[Site "Chess.com"]
[Date "2024.02.20"]
[Round "2"]
[White "colegiodemadrid"]
[Black "IngOscarArdila"]
[Result "1-0"]
[WhiteElo "2488"]
[BlackElo "2243"]
[TimeControl "180+1"]
[EndTime "14:16:06 PST"]
[Termination "colegiodemadrid won by checkmate"]

1. Nf3 {[%clk 0:03:00.9]} 1... Nf6 {[%clk 0:02:59.2]} 2. g3 {[%clk 0:03:01.1]}
2... g6 {[%clk 0:02:58.6]} 3. Bg2 {[%clk 0:03:02]} 3... Bg7 {[%clk 0:02:57.8]}
4. O-O {[%clk 0:03:02.9]} 4... O-O {[%clk 0:02:57.3]} 5. c4 {[%clk 0:03:03.4]}
5... d6 {[%clk 0:02:57]} 6. b3 {[%clk 0:03:01.9]} 6... Nbd7 {[%clk 0:02:56.1]}
7. d4 {[%clk 0:03:01.9]} 7... e5 {[%clk 0:02:55]} 8. e3 {[%clk 0:03:02]} 8...
exd4 {[%clk 0:02:54.6]} 9. Nxd4 {[%clk 0:03:01.7]} 9... Re8 {[%clk 0:02:53.5]}
10. Bb2 {[%clk 0:03:01.4]} 10... Nc5 {[%clk 0:02:53.5]} 11. Nc3 {[%clk 0:03:01]}
11... Bg4 {[%clk 0:02:52.6]} 12. f3 {[%clk 0:02:56.1]} 12... Bd7 {[%clk
0:02:51.1]} 13. e4 {[%clk 0:02:56.5]} 13... Qe7 {[%clk 0:02:29.6]} 14. Qd2
{[%clk 0:02:54]} 14... Rad8 {[%clk 0:02:28.2]} 15. Ndb5 {[%clk 0:02:52.6]} 15...
Bxb5 {[%clk 0:02:24.8]} 16. Nxb5 {[%clk 0:02:52.7]} 16... a6 {[%clk 0:02:22.9]}
17. Nc3 {[%clk 0:02:52.8]} 17... h5 {[%clk 0:02:00.1]} 18. Rae1 {[%clk
0:02:51.7]} 18... Qf8 {[%clk 0:01:58.3]} 19. b4 {[%clk 0:02:47.9]} 19... Ne6
{[%clk 0:01:48.9]} 20. f4 {[%clk 0:02:45.3]} 20... Ng4 {[%clk 0:01:41.1]} 21.
Nd5 {[%clk 0:02:41.6]} 21... c6 {[%clk 0:01:36.7]} 22. h3 {[%clk 0:02:23.9]}
22... cxd5 {[%clk 0:01:28.6]} 23. cxd5 {[%clk 0:02:16.3]} 23... Nc7 {[%clk
0:00:57.7]} 24. hxg4 {[%clk 0:02:14.3]} 24... hxg4 {[%clk 0:00:57.8]} 25. a4
{[%clk 0:02:09.2]} 25... Bxb2 {[%clk 0:00:54.4]} 26. Qxb2 {[%clk 0:02:08.7]}
26... Rc8 {[%clk 0:00:52.9]} 27. Rc1 {[%clk 0:02:03.7]} 27... Na8 {[%clk
0:00:47.1]} 28. e5 {[%clk 0:01:58.3]} 28... dxe5 {[%clk 0:00:39.3]} 29. fxe5
{[%clk 0:01:56.6]} 29... Rxc1 {[%clk 0:00:39.4]} 30. Rxc1 {[%clk 0:01:52.5]}
30... Rc8 {[%clk 0:00:39.9]} 31. Rxc8 {[%clk 0:01:48.2]} 31... Qxc8 {[%clk
0:00:40.8]} 32. d6 {[%clk 0:01:48.7]} 32... Nb6 {[%clk 0:00:39.6]} 33. a5 {[%clk
0:01:44.6]} 33... Nd7 {[%clk 0:00:39.2]} 34. Qd2 {[%clk 0:01:35.3]} 34... Nxe5
{[%clk 0:00:36.2]} 35. Kh2 {[%clk 0:01:23.3]} 35... Qd7 {[%clk 0:00:32.1]} 36.
Qd5 {[%clk 0:01:19]} 36... Nf3+ {[%clk 0:00:29.2]} 37. Bxf3 {[%clk 0:01:17.1]}
37... gxf3 {[%clk 0:00:30.1]} 38. Kg1 {[%clk 0:01:13.4]} 38... Kf8 {[%clk
0:00:26.1]} 39. Qe5 {[%clk 0:01:11.5]} 39... Qe6 {[%clk 0:00:13.7]} 40. Qh8#
{[%clk 0:01:09.2]} 1-0

[Event "Late-Titled-Tuesday-Blitz-February-20-2024"]
[Site "Chess.com"]
[Date "2024.02.20"]
[Round "2"]
[White "ritanovikova"]
[Black "tusplingher"]
[Result "0-1"]
[WhiteElo "2199"]
[BlackElo "2472"]
[TimeControl "180+1"]
[EndTime "14:16:06 PST"]
[Termination "tusplingher won by checkmate"]

1. e3 {[%clk 0:03:00.1]} 1... c5 {[%clk 0:02:59.3]} 2. b3 {[%clk 0:02:59.6]}
2... Nc6 {[%clk 0:02:57.7]} 3. Bb2 {[%clk 0:03:00.1]} 3... e5 {[%clk 0:02:58.2]}
4. Bb5 {[%clk 0:02:58.2]} 4... d6 {[%clk 0:02:58.6]} 5. d4 {[%clk 0:02:57.4]}
5... cxd4 {[%clk 0:02:58.1]} 6. exd4 {[%clk 0:02:57.4]} 6... Bd7 {[%clk
0:02:46.1]} 7. dxe5 {[%clk 0:02:41.7]} 7... dxe5 {[%clk 0:02:44.4]} 8. Nd2
{[%clk 0:02:27.1]} 8... Nf6 {[%clk 0:02:41.7]} 9. Ngf3 {[%clk 0:02:25]} 9... e4
{[%clk 0:02:39.3]} 10. Bxc6 {[%clk 0:02:21.8]} 10... Bxc6 {[%clk 0:02:37.3]} 11.
Ne5 {[%clk 0:02:21.2]} 11... e3 {[%clk 0:02:35.2]} 12. Ndf3 {[%clk 0:01:57]}
12... exf2+ {[%clk 0:02:30.3]} 13. Kxf2 {[%clk 0:01:53.5]} 13... Bc5+ {[%clk
0:02:29.9]} 14. Kf1 {[%clk 0:01:47.5]} 14... Qxd1+ {[%clk 0:02:01]} 15. Rxd1
{[%clk 0:01:46.6]} 15... Be4 {[%clk 0:01:58.4]} 16. Nxf7 {[%clk 0:01:11.7]}
16... Bxf3 {[%clk 0:01:48.1]} 17. Nd6+ {[%clk 0:00:58.5]} 17... Bxd6 {[%clk
0:01:47.1]} 18. gxf3 {[%clk 0:00:49.4]} 18... Be7 {[%clk 0:01:36.9]} 19. Rg1
{[%clk 0:00:37.3]} 19... Kf7 {[%clk 0:01:34.1]} 20. Bxf6 {[%clk 0:00:33.6]}
20... Bxf6 {[%clk 0:01:28.4]} 21. Rd7+ {[%clk 0:00:32.4]} 21... Ke6 {[%clk
0:01:28.6]} 22. Rxb7 {[%clk 0:00:31.5]} 22... Rhd8 {[%clk 0:01:29.2]} 23. Ke2
{[%clk 0:00:26.3]} 23... Rd5 {[%clk 0:01:24.5]} 24. f4 {[%clk 0:00:15.4]} 24...
Rad8 {[%clk 0:01:22.8]} 25. Rxa7 {[%clk 0:00:07.1]} 25... Rd2+ {[%clk
0:01:22.8]} 26. Kf3 {[%clk 0:00:07.3]} 26... Rxc2 {[%clk 0:01:22.8]} 27. a4
{[%clk 0:00:06.4]} 27... Rc3+ {[%clk 0:01:22]} 28. Kg4 {[%clk 0:00:04.8]} 28...
h5+ {[%clk 0:01:15.6]} 29. Kxh5 {[%clk 0:00:03.8]} 29... Rh8+ {[%clk 0:01:16.2]}
30. Kg6 {[%clk 0:00:03.9]} 30... Rh6# {[%clk 0:01:16.3]} 0-1

[Event "Late-Titled-Tuesday-Blitz-February-20-2024"]
[Site "Chess.com"]
[Date "2024.02.20"]
[Round "2"]
[White "KetiTsatsalashvili"]
[Black "JaackCamel"]
[Result "0-1"]
[WhiteElo "2438"]
[BlackElo "2185"]
[TimeControl "180+1"]
[EndTime "14:16:15 PST"]
[Termination "JaackCamel won by resignation"]

1. d4 {[%clk 0:03:00.9]} 1... d5 {[%clk 0:02:58.4]} 2. Nf3 {[%clk 0:03:00.6]}
2... e6 {[%clk 0:02:57.9]} 3. c4 {[%clk 0:03:00.5]} 3... c6 {[%clk 0:02:55.9]}
4. e3 {[%clk 0:02:59.2]} 4... Nf6 {[%clk 0:02:55.2]} 5. Nbd2 {[%clk 0:02:58.4]}
5... Nbd7 {[%clk 0:02:54.9]} 6. Bd3 {[%clk 0:02:58.5]} 6... dxc4 {[%clk
0:02:54.5]} 7. Nxc4 {[%clk 0:02:58.3]} 7... b5 {[%clk 0:02:53.5]} 8. Nce5 {[%clk
0:02:58]} 8... Bb7 {[%clk 0:02:52.5]} 9. O-O {[%clk 0:02:53.3]} 9... a6 {[%clk
0:02:52.2]} 10. a4 {[%clk 0:02:25]} 10... b4 {[%clk 0:02:51.1]} 11. Qb3 {[%clk
0:02:05.2]} 11... c5 {[%clk 0:02:50.3]} 12. Nxf7 {[%clk 0:01:53.7]} 12... Kxf7
{[%clk 0:02:43]} 13. Ng5+ {[%clk 0:01:53.5]} 13... Ke8 {[%clk 0:02:37.3]} 14.
Qxe6+ {[%clk 0:01:04.3]} 14... Qe7 {[%clk 0:02:35.9]} 15. Qh3 {[%clk 0:00:57.7]}
15... Bd5 {[%clk 0:02:10.2]} 16. e4 {[%clk 0:00:41.5]} 16... Bf7 {[%clk
0:02:01.3]} 17. e5 {[%clk 0:00:39.6]} 17... Nd5 {[%clk 0:01:53.7]} 18. Nxf7
{[%clk 0:00:39.8]} 18... Kxf7 {[%clk 0:01:46.7]} 19. Bc4 {[%clk 0:00:39.8]}
19... Nb6 {[%clk 0:01:42.5]} 20. Qf3+ {[%clk 0:00:39.6]} 20... Ke6 {[%clk
0:01:38.5]} 21. Bxd5+ {[%clk 0:00:40.3]} 21... Nxd5 {[%clk 0:01:37.7]} 22. Qg4+
{[%clk 0:00:33.9]} 22... Kf7 {[%clk 0:01:34.9]} 23. Qf3+ {[%clk 0:00:33.6]}
23... Ke6 {[%clk 0:01:34]} 24. h4 {[%clk 0:00:30.4]} 24... Qxh4 {[%clk
0:01:27.5]} 25. dxc5 {[%clk 0:00:21]} 25... Bxc5 {[%clk 0:01:24.3]} 26. Rd1
{[%clk 0:00:18.6]} 26... Rad8 {[%clk 0:01:17.9]} 27. g3 {[%clk 0:00:18.8]} 27...
Qe7 {[%clk 0:01:05.7]} 28. Qg4+ {[%clk 0:00:18.9]} 28... Kf7 {[%clk 0:00:59.4]}
29. Bg5 {[%clk 0:00:18.9]} 29... Qe6 {[%clk 0:00:51.5]} 30. Bxd8 {[%clk
0:00:18.8]} 30... Qxg4 {[%clk 0:00:51]} 31. Rxd5 {[%clk 0:00:17.4]} 31... Qxg3+
{[%clk 0:00:48.9]} 32. Kh1 {[%clk 0:00:17.6]} 32... Qf3+ {[%clk 0:00:47.2]} 33.
Kh2 {[%clk 0:00:16.7]} 33... Qxd5 {[%clk 0:00:46.4]} 0-1

[Event "Late-Titled-Tuesday-Blitz-February-20-2024"]
[Site "Chess.com"]
[Date "2024.02.20"]
[Round "2"]
[White "Beca95"]
[Black "JackRodgers"]
[Result "1-0"]
[WhiteElo "2907"]
[BlackElo "2551"]
[TimeControl "180+1"]
[EndTime "14:16:21 PST"]
[Termination "Beca95 won on time"]

1. e4 {[%clk 0:03:00.9]} 1... c5 {[%clk 0:02:53.7]} 2. Nf3 {[%clk 0:03:01]} 2...
g6 {[%clk 0:02:53.4]} 3. Bc4 {[%clk 0:02:55.4]} 3... Bg7 {[%clk 0:02:52.5]} 4.
O-O {[%clk 0:02:55.1]} 4... e6 {[%clk 0:02:46]} 5. Re1 {[%clk 0:02:53.3]} 5...
Ne7 {[%clk 0:02:41.9]} 6. Bf1 {[%clk 0:02:45.7]} 6... O-O {[%clk 0:02:34.1]} 7.
d3 {[%clk 0:02:45.6]} 7... Nbc6 {[%clk 0:02:28.3]} 8. g3 {[%clk 0:02:43.9]} 8...
d6 {[%clk 0:02:21.7]} 9. c3 {[%clk 0:02:43.7]} 9... e5 {[%clk 0:02:17.6]} 10.
Nbd2 {[%clk 0:02:41.1]} 10... h6 {[%clk 0:02:12.4]} 11. Nc4 {[%clk 0:02:40.4]}
11... Be6 {[%clk 0:02:10.4]} 12. a4 {[%clk 0:02:40.1]} 12... Na5 {[%clk
0:02:03]} 13. b4 {[%clk 0:02:05.1]} 13... cxb4 {[%clk 0:01:46.7]} 14. cxb4
{[%clk 0:02:02.6]} 14... Nac6 {[%clk 0:01:47]} 15. b5 {[%clk 0:01:59.4]} 15...
Nd4 {[%clk 0:01:40.2]} 16. Nxd4 {[%clk 0:01:59.1]} 16... exd4 {[%clk 0:01:40.4]}
17. Ba3 {[%clk 0:01:59.8]} 17... Bxc4 {[%clk 0:01:37.7]} 18. dxc4 {[%clk
0:02:00.7]} 18... Nc8 {[%clk 0:01:01.5]} 19. Ra2 {[%clk 0:01:59.7]} 19... a5
{[%clk 0:00:59]} 20. Rd2 {[%clk 0:01:59.1]} 20... Nb6 {[%clk 0:00:53.2]} 21. c5
{[%clk 0:01:58.8]} 21... dxc5 {[%clk 0:00:46.6]} 22. Bxc5 {[%clk 0:01:59.7]}
22... Rc8 {[%clk 0:00:45.4]} 23. Bxd4 {[%clk 0:01:56.5]} 23... Bxd4 {[%clk
0:00:44.2]} 24. Rxd4 {[%clk 0:01:57.4]} 24... Qe7 {[%clk 0:00:41.2]} 25. Qd2
{[%clk 0:01:57]} 25... Qa3 {[%clk 0:00:30.5]} 26. Qxa5 {[%clk 0:01:55]} 26...
Qc5 {[%clk 0:00:27]} 27. Qd2 {[%clk 0:01:54.1]} 27... Ra8 {[%clk 0:00:23.2]} 28.
Ra1 {[%clk 0:01:41.9]} 28... Rfc8 {[%clk 0:00:21.8]} 29. a5 {[%clk 0:01:38.9]}
29... Qc3 {[%clk 0:00:15.8]} 30. Rd8+ {[%clk 0:01:17.6]} 30... Kg7 {[%clk
0:00:12.2]} 31. Qxc3+ {[%clk 0:01:17.2]} 31... Rxc3 {[%clk 0:00:11.9]} 32. Rxa8
{[%clk 0:01:17.6]} 32... Nxa8 {[%clk 0:00:12.8]} 33. b6 {[%clk 0:01:17.8]} 33...
Kf6 {[%clk 0:00:06.5]} 34. Ba6 {[%clk 0:01:04]} 34... Nxb6 {[%clk 0:00:03.7]}
35. Bxb7 {[%clk 0:01:04]} 35... Nc4 {[%clk 0:00:02]} 36. a6 {[%clk 0:01:04.1]}
1-0

[Event "Late-Titled-Tuesday-Blitz-February-20-2024"]
[Site "Chess.com"]
[Date "2024.02.20"]
[Round "2"]
[White "jk13"]
[Black "egnfanclub"]
[Result "1-0"]
[WhiteElo "2712"]
[BlackElo "2376"]
[TimeControl "180+1"]
[EndTime "14:16:21 PST"]
[Termination "jk13 won by resignation"]

1. e4 {[%clk 0:03:00]} 1... e5 {[%clk 0:02:59.8]} 2. Nf3 {[%clk 0:02:59.3]} 2...
Nc6 {[%clk 0:02:59.4]} 3. Bc4 {[%clk 0:02:59.6]} 3... Nf6 {[%clk 0:02:59.2]} 4.
d3 {[%clk 0:03:00.4]} 4... Bc5 {[%clk 0:02:58.4]} 5. c3 {[%clk 0:03:00.3]} 5...
d6 {[%clk 0:02:58.4]} 6. Bb3 {[%clk 0:03:00.4]} 6... a5 {[%clk 0:02:58.3]} 7.
Nbd2 {[%clk 0:03:01]} 7... O-O {[%clk 0:02:53.9]} 8. O-O {[%clk 0:03:00.4]} 8...
Be6 {[%clk 0:02:37.3]} 9. Bc2 {[%clk 0:02:59.8]} 9... d5 {[%clk 0:02:35.1]} 10.
Qe2 {[%clk 0:02:59.5]} 10... d4 {[%clk 0:02:32.1]} 11. h3 {[%clk 0:02:47.6]}
11... a4 {[%clk 0:02:29.7]} 12. a3 {[%clk 0:02:44.8]} 12... h6 {[%clk
0:02:29.5]} 13. Nh4 {[%clk 0:02:43.8]} 13... Qd7 {[%clk 0:02:10.5]} 14. Qf3
{[%clk 0:02:38.7]} 14... Nh7 {[%clk 0:01:52]} 15. Re1 {[%clk 0:02:34.5]} 15...
Ng5 {[%clk 0:01:50]} 16. Qg3 {[%clk 0:02:35.1]} 16... b5 {[%clk 0:01:32.3]} 17.
Ndf3 {[%clk 0:02:27.3]} 17... f6 {[%clk 0:01:19.7]} 18. Ng6 {[%clk 0:02:22.2]}
18... Rfe8 {[%clk 0:01:19.4]} 19. h4 {[%clk 0:02:21.8]} 19... Nxf3+ {[%clk
0:01:12]} 20. Qxf3 {[%clk 0:02:22.7]} 20... Bg4 {[%clk 0:01:02.5]} 21. Qg3
{[%clk 0:02:23.3]} 21... Bh5 {[%clk 0:01:02.5]} 22. Bd1 {[%clk 0:02:19.2]} 22...
Bxg6 {[%clk 0:00:59.7]} 23. Qxg6 {[%clk 0:02:18.7]} 23... Qf7 {[%clk 0:00:57.2]}
24. Qg3 {[%clk 0:02:09.4]} 24... Kf8 {[%clk 0:00:53.8]} 25. Bg4 {[%clk
0:01:58.2]} 25... Red8 {[%clk 0:00:53.4]} 26. Kh1 {[%clk 0:01:50.5]} 26... Rd6
{[%clk 0:00:52.4]} 27. f4 {[%clk 0:01:48.9]} 27... Rad8 {[%clk 0:00:51.2]} 28.
Be2 {[%clk 0:01:38.7]} 28... dxc3 {[%clk 0:00:50.8]} 29. bxc3 {[%clk 0:01:38.7]}
29... Na5 {[%clk 0:00:49.1]} 30. fxe5 {[%clk 0:01:37.5]} 30... fxe5 {[%clk
0:00:49.6]} 31. Rf1 {[%clk 0:01:09.4]} 31... Rf6 {[%clk 0:00:49.7]} 32. Bxh6
{[%clk 0:01:10.1]} 32... Bf2 {[%clk 0:00:47.6]} 33. Rxf2 {[%clk 0:00:58.8]}
33... Rxf2 {[%clk 0:00:47.6]} 34. Bxg7+ {[%clk 0:00:52.4]} 34... Qxg7 {[%clk
0:00:48]} 35. Qxf2+ {[%clk 0:00:52.8]} 35... Kg8 {[%clk 0:00:48.6]} 36. Rf1
{[%clk 0:00:50.9]} 36... Nb3 {[%clk 0:00:47.3]} 37. Bg4 {[%clk 0:00:41.6]} 37...
Qxg4 {[%clk 0:00:36]} 38. Qf7+ {[%clk 0:00:41.1]} 38... Kh8 {[%clk 0:00:35.5]}
39. Qf6+ {[%clk 0:00:42]} 39... Kh7 {[%clk 0:00:35.9]} 40. Qxd8 {[%clk
0:00:42.1]} 1-0

[Event "Late-Titled-Tuesday-Blitz-February-20-2024"]
[Site "Chess.com"]
[Date "2024.02.20"]
[Round "2"]
[White "Muracle"]
[Black "igorknyazev"]
[Result "1-0"]
[WhiteElo "2471"]
[BlackElo "2197"]
[TimeControl "180+1"]
[EndTime "14:16:23 PST"]
[Termination "Muracle won by resignation"]

1. Nf3 {[%clk 0:02:48.7]} 1... Nc6 {[%clk 0:02:58.9]} 2. b3 {[%clk 0:02:49]}
2... e5 {[%clk 0:02:59.3]} 3. Bb2 {[%clk 0:02:49.5]} 3... d6 {[%clk 0:02:59.2]}
4. e3 {[%clk 0:02:49.3]} 4... Bg4 {[%clk 0:02:57]} 5. h3 {[%clk 0:02:47.9]} 5...
Bh5 {[%clk 0:02:56.3]} 6. Be2 {[%clk 0:02:45]} 6... Be7 {[%clk 0:02:52.4]} 7.
O-O {[%clk 0:02:28.6]} 7... Qd7 {[%clk 0:02:46.5]} 8. Nxe5 {[%clk 0:02:27.6]}
8... dxe5 {[%clk 0:02:43.1]} 9. Bxh5 {[%clk 0:02:27.2]} 9... Nf6 {[%clk
0:02:42.7]} 10. Bf3 {[%clk 0:02:25.9]} 10... O-O-O {[%clk 0:02:40.4]} 11. d3
{[%clk 0:02:22.2]} 11... Kb8 {[%clk 0:02:23.1]} 12. Nd2 {[%clk 0:02:21.9]} 12...
h5 {[%clk 0:02:19.2]} 13. Nc4 {[%clk 0:02:18]} 13... g5 {[%clk 0:02:15.7]} 14.
Bxc6 {[%clk 0:02:16.5]} 14... Qxc6 {[%clk 0:02:11.8]} 15. Nxe5 {[%clk
0:02:17.4]} 15... Qe6 {[%clk 0:02:10.6]} 16. Nf3 {[%clk 0:01:59]} 16... g4
{[%clk 0:02:06.7]} 17. Nd4 {[%clk 0:01:59.2]} 17... Rxd4 {[%clk 0:01:51]} 18.
Bxd4 {[%clk 0:01:56.8]} 18... gxh3 {[%clk 0:01:51.6]} 19. g3 {[%clk 0:01:48]}
19... Qd5 {[%clk 0:01:42.2]} 20. f3 {[%clk 0:01:36.5]} 20... Rg8 {[%clk
0:01:41.7]} 21. Kf2 {[%clk 0:01:25]} 21... h2 {[%clk 0:01:25.6]} 22. Rh1 {[%clk
0:01:17.4]} 22... h4 {[%clk 0:01:15.5]} 23. g4 {[%clk 0:01:02.5]} 23... Nxg4+
{[%clk 0:01:02.6]} 24. fxg4 {[%clk 0:00:49.3]} 24... h3 {[%clk 0:00:52.9]} 25.
Qf3 {[%clk 0:00:47]} 25... Bh4+ {[%clk 0:00:53.2]} 26. Ke2 {[%clk 0:00:46.6]}
26... Qe6 {[%clk 0:00:40.7]} 27. Qxh3 {[%clk 0:00:42.9]} 27... Rxg4 {[%clk
0:00:39.5]} 28. Rxh2 {[%clk 0:00:42.3]} 28... Bd8 {[%clk 0:00:19.3]} 29. Rf1
{[%clk 0:00:35.5]} 29... Rxd4 {[%clk 0:00:16.6]} 30. Qxe6 {[%clk 0:00:34.4]} 1-0

[Event "Late-Titled-Tuesday-Blitz-February-20-2024"]
[Site "Chess.com"]
[Date "2024.02.20"]
[Round "2"]
[White "Walter_White_Poland"]
[Black "Hasangatin_Ramil"]
[Result "0-1"]
[WhiteElo "2361"]
[BlackElo "2668"]
[TimeControl "180+1"]
[EndTime "14:16:27 PST"]
[Termination "Hasangatin_Ramil won on time"]

1. d4 {[%clk 0:03:00.9]} 1... d6 {[%clk 0:02:58.4]} 2. e4 {[%clk 0:02:56.6]}
2... Nf6 {[%clk 0:02:58.1]} 3. Nc3 {[%clk 0:02:56.1]} 3... e5 {[%clk 0:02:59]}
4. dxe5 {[%clk 0:02:55.6]} 4... dxe5 {[%clk 0:02:59.9]} 5. Qxd8+ {[%clk
0:02:55.3]} 5... Kxd8 {[%clk 0:03:00.8]} 6. Bc4 {[%clk 0:02:55.3]} 6... Be6
{[%clk 0:03:00.6]} 7. Bxe6 {[%clk 0:02:54.9]} 7... fxe6 {[%clk 0:03:01.5]} 8.
Be3 {[%clk 0:02:48.8]} 8... Bd6 {[%clk 0:03:02.4]} 9. f3 {[%clk 0:02:47.2]} 9...
Ke7 {[%clk 0:03:03.3]} 10. O-O-O {[%clk 0:02:46.5]} 10... a6 {[%clk 0:03:02.7]}
11. Nge2 {[%clk 0:02:37.7]} 11... h6 {[%clk 0:03:02.9]} 12. b3 {[%clk
0:02:34.5]} 12... Nc6 {[%clk 0:03:01.7]} 13. Kb2 {[%clk 0:02:33.7]} 13... Rhf8
{[%clk 0:03:01.6]} 14. a3 {[%clk 0:02:31.9]} 14... Nh5 {[%clk 0:03:01.5]} 15.
Na4 {[%clk 0:02:22.9]} 15... Nf4 {[%clk 0:02:59.4]} 16. Nxf4 {[%clk 0:02:10.2]}
16... exf4 {[%clk 0:03:00.3]} 17. Bc5 {[%clk 0:01:58.6]} 17... b5 {[%clk
0:02:59.6]} 18. Bxd6+ {[%clk 0:01:49.7]} 18... cxd6 {[%clk 0:03:00.5]} 19. Nc3
{[%clk 0:01:48.2]} 19... Ne5 {[%clk 0:02:59.4]} 20. Rd2 {[%clk 0:01:43.8]} 20...
g5 {[%clk 0:02:58.7]} 21. h3 {[%clk 0:01:42.9]} 21... h5 {[%clk 0:02:58.2]} 22.
Ne2 {[%clk 0:01:40.7]} 22... Rac8 {[%clk 0:02:54.5]} 23. Rhd1 {[%clk 0:01:37.8]}
23... Rc6 {[%clk 0:02:54.1]} 24. Nd4 {[%clk 0:01:36.5]} 24... Rb6 {[%clk
0:02:54.1]} 25. Rh1 {[%clk 0:01:25.5]} 25... Ng6 {[%clk 0:02:51.9]} 26. c3
{[%clk 0:01:03.9]} 26... a5 {[%clk 0:02:50.1]} 27. Nc2 {[%clk 0:01:00.1]} 27...
a4 {[%clk 0:02:47.1]} 28. Nd4 {[%clk 0:00:38.6]} 28... Ne5 {[%clk 0:02:43]} 29.
h4 {[%clk 0:00:31]} 29... g4 {[%clk 0:02:42.7]} 30. fxg4 {[%clk 0:00:20.7]}
30... hxg4 {[%clk 0:02:43.6]} 31. Rf2 {[%clk 0:00:17.9]} 31... axb3 {[%clk
0:02:43.3]} 32. Kxb3 {[%clk 0:00:14.8]} 32... Nd3 {[%clk 0:02:35.3]} 33. Rd2
{[%clk 0:00:13]} 33... Nc5+ {[%clk 0:02:35.2]} 34. Kb4 {[%clk 0:00:11.8]} 34...
Nxe4 {[%clk 0:02:35.7]} 35. Re2 {[%clk 0:00:11.1]} 35... Nc5 {[%clk 0:02:28.7]}
36. h5 {[%clk 0:00:08.7]} 36... e5 {[%clk 0:02:27.4]} 37. h6 {[%clk 0:00:06.7]}
37... Kf6 {[%clk 0:02:27.2]} 38. h7 {[%clk 0:00:06.3]} 38... Nd3+ {[%clk
0:02:19.5]} 39. Kb3 {[%clk 0:00:05.6]} 39... Nc5+ {[%clk 0:02:12.9]} 40. Kb4
{[%clk 0:00:05.3]} 40... Kg7 {[%clk 0:02:09.7]} 41. Nb3 {[%clk 0:00:04.2]} 41...
Nd3+ {[%clk 0:02:01.7]} 42. Ka5 {[%clk 0:00:04.3]} 42... Rb7 {[%clk 0:02:02.3]}
43. h8=Q+ {[%clk 0:00:03.7]} 43... Rxh8 {[%clk 0:02:01.2]} 44. Rxh8 {[%clk
0:00:04.6]} 44... Kxh8 {[%clk 0:02:01.9]} 45. Rd2 {[%clk 0:00:05.1]} 45... e4
{[%clk 0:01:59.3]} 46. Nd4 {[%clk 0:00:05.3]} 46... Kg7 {[%clk 0:01:49.6]} 47.
Nxb5 {[%clk 0:00:05.4]} 47... Rxb5+ {[%clk 0:01:39.2]} 48. Kxb5 {[%clk
0:00:05.2]} 48... f3 {[%clk 0:01:39.6]} 49. gxf3 {[%clk 0:00:04.6]} 49... exf3
{[%clk 0:01:35.4]} 50. Rxd3 {[%clk 0:00:03.2]} 50... f2 {[%clk 0:01:35.5]} 51.
Rd1 {[%clk 0:00:01.8]} 51... g3 {[%clk 0:01:36]} 0-1

[Event "Late-Titled-Tuesday-Blitz-February-20-2024"]
[Site "Chess.com"]
[Date "2024.02.20"]
[Round "2"]
[White "Grindaveci"]
[Black "EcosseKillie"]
[Result "1/2-1/2"]
[WhiteElo "2438"]
[BlackElo "2161"]
[TimeControl "180+1"]
[EndTime "14:16:27 PST"]
[Termination "Game drawn by repetition"]

1. e4 {[%clk 0:02:59.2]} 1... Nf6 {[%clk 0:03:00.3]} 2. Nc3 {[%clk 0:02:52.4]}
2... d5 {[%clk 0:03:00.1]} 3. exd5 {[%clk 0:02:51]} 3... Nxd5 {[%clk 0:03:01]}
4. Nxd5 {[%clk 0:02:50.8]} 4... Qxd5 {[%clk 0:03:01.9]} 5. Nf3 {[%clk
0:02:51.3]} 5... Bg4 {[%clk 0:03:02]} 6. Be2 {[%clk 0:02:50.3]} 6... e5 {[%clk
0:03:02.1]} 7. d3 {[%clk 0:02:50]} 7... Nc6 {[%clk 0:03:02.2]} 8. Be3 {[%clk
0:02:48.5]} 8... f5 {[%clk 0:02:57.7]} 9. O-O {[%clk 0:02:33.4]} 9... f4 {[%clk
0:02:57.1]} 10. Bc1 {[%clk 0:02:33.3]} 10... Bc5 {[%clk 0:02:50.5]} 11. Nd2
{[%clk 0:02:26.8]} 11... Bf5 {[%clk 0:02:44.6]} 12. Bf3 {[%clk 0:02:24.2]} 12...
Qd7 {[%clk 0:02:42.8]} 13. Nc4 {[%clk 0:02:20.6]} 13... Bd6 {[%clk 0:02:31.3]}
14. Re1 {[%clk 0:02:17]} 14... Qc8 {[%clk 0:02:20.2]} 15. Bxc6+ {[%clk
0:01:39.2]} 15... bxc6 {[%clk 0:02:19.6]} 16. Nxe5 {[%clk 0:01:40.1]} 16... O-O
{[%clk 0:02:20.3]} 17. c3 {[%clk 0:01:35]} 17... Qb7 {[%clk 0:02:10.7]} 18. d4
{[%clk 0:01:19.4]} 18... Rae8 {[%clk 0:02:06.8]} 19. Qb3+ {[%clk 0:01:17.1]}
19... Qxb3 {[%clk 0:02:05.8]} 20. axb3 {[%clk 0:01:18]} 20... Bc2 {[%clk
0:01:58.9]} 21. b4 {[%clk 0:01:16.6]} 21... Rf5 {[%clk 0:01:54]} 22. Rxa7 {[%clk
0:01:13.7]} 22... Bxe5 {[%clk 0:01:52.7]} 23. dxe5 {[%clk 0:01:12.2]} 23...
Rfxe5 {[%clk 0:01:53.6]} 24. Rxe5 {[%clk 0:00:48]} 24... Rxe5 {[%clk 0:01:54.5]}
25. f3 {[%clk 0:00:47.8]} 25... Re1+ {[%clk 0:01:52.3]} 26. Kf2 {[%clk
0:00:48.3]} 26... Rxc1 {[%clk 0:01:53.2]} 27. Rxc7 {[%clk 0:00:48.6]} 27... Ba4
{[%clk 0:01:53.4]} 28. g3 {[%clk 0:00:46.1]} 28... Rc2+ {[%clk 0:01:53]} 29. Kg1
{[%clk 0:00:45.8]} 29... Rxb2 {[%clk 0:01:51.5]} 30. gxf4 {[%clk 0:00:41]} 30...
Rc2 {[%clk 0:01:50.9]} 31. Kf1 {[%clk 0:00:38.8]} 31... Bb5+ {[%clk 0:01:49.3]}
32. Kg1 {[%clk 0:00:39.2]} 32... Rxc3 {[%clk 0:01:49]} 33. Kf2 {[%clk
0:00:39.1]} 33... Rb3 {[%clk 0:01:49.5]} 34. Kg3 {[%clk 0:00:39.4]} 34... Rxb4
{[%clk 0:01:49.4]} 35. Kg4 {[%clk 0:00:39.9]} 35... h6 {[%clk 0:01:46]} 36. h4
{[%clk 0:00:33.9]} 36... Rb1 {[%clk 0:01:42.9]} 37. f5 {[%clk 0:00:31.4]} 37...
Rb4+ {[%clk 0:01:38.3]} 38. Kh5 {[%clk 0:00:30.5]} 38... Be2 {[%clk 0:01:38.1]}
39. Kg6 {[%clk 0:00:28.9]} 39... Rb8 {[%clk 0:01:37.1]} 40. Rxg7+ {[%clk
0:00:28.1]} 40... Kh8 {[%clk 0:01:37.6]} 41. Rc7 {[%clk 0:00:26.6]} 41... Kg8
{[%clk 0:01:38.5]} 42. Rxc6 {[%clk 0:00:26.6]} 42... Bxf3 {[%clk 0:01:39]} 43.
Kxh6 {[%clk 0:00:26.6]} 43... Be4 {[%clk 0:01:39.1]} 44. Rg6+ {[%clk 0:00:26.1]}
44... Kh8 {[%clk 0:01:37.6]} 45. Rf6 {[%clk 0:00:25.8]} 45... Bxf5 {[%clk
0:01:34.9]} 46. Rxf5 {[%clk 0:00:25.9]} 46... Ra8 {[%clk 0:01:33.2]} 47. Rf6
{[%clk 0:00:25]} 47... Rb8 {[%clk 0:01:33.2]} 48. Ra6 {[%clk 0:00:25.1]} 48...
Rc8 {[%clk 0:01:33.1]} 49. h5 {[%clk 0:00:24.8]} 49... Kg8 {[%clk 0:01:30.8]}
50. Rg6+ {[%clk 0:00:24.9]} 50... Kh8 {[%clk 0:01:30.7]} 51. Kg5 {[%clk
0:00:25.8]} 51... Rc5+ {[%clk 0:01:30.7]} 52. Kh6 {[%clk 0:00:26.7]} 52... Rc8
{[%clk 0:01:30.7]} 53. Rf6 {[%clk 0:00:26.5]} 53... Kg8 {[%clk 0:01:29.9]} 54.
Rg6+ {[%clk 0:00:27.4]} 54... Kh8 {[%clk 0:01:30.1]} 1/2-1/2